bitfinex-derivatives/quotes_ETHF0:USTF0_20251013
["timestamp","ask_amount","ask_price","bid_price","bid_amount"]
[1760389758193,1.1105,4278.2,4278.1,3.44911351]
[1760389759093,1.1105,4278.2,4278.1,3.21011351]
[1760389759094,1.53085,4278.2,4278.1,3.21011351]
[1760389760488,1.53085,4278.2,4278.1,0.00231351]
[1760389762995,1.1105,4278.2,4278.1,0.80991351]
[1760389763291,1.53085,4278.2,4278.1,0.00231351]
[1760389764094,1.53085,4278.2,4278.1,1.23027351]
[1760389764298,1.53085,4278.2,4278.1,0.00231351]
[1760389768891,1.53085,4278.2,4278.1,0.31801351]
[1760389769292,1.1105,4278.2,4278.1,1.53177351]
[1760389769496,0.3142,4278.2,4278.1,4.73957351]
[1760389769894,0.3451,4278.3,4278.2,1.52945]
[1760389772202,0.6706,4278.3,4278.2,1.52945]
[1760389772703,1.1671,4278.3,4278.2,1.52945]
[1760389773096,1.4669,4278.3,4278.2,1.52945]
[1760389773399,1.4669,4278.3,4278.2,1.76845]
[1760389774201,1.4669,4278.3,4278.2,0.239]
[1760389774397,1.05105,4277.6,4277.0,1.23815321]
[1760389774602,0.42055,4276.2,4276.1,3.2078]
[1760389774799,3.62831,4276.6,4276.5,0.1934]
[1760389775102,3.62831,4276.6,4276.5,0.4324]
[1760389775297,3.62831,4276.6,4276.5,0.43505414]
[1760389777104,3.62831,4276.6,4276.5,0.19605414]
[1760389777402,3.62831,4276.6,4276.1,0.4919]
[1760389777403,0.42055,4276.2,4276.1,0.4919]
[1760389778000,0.42055,4276.2,4276.1,0.7309]
[1760389778401,0.42055,4276.2,4276.1,0.49364225]
[1760389778600,0.42055,4276.2,4276.1,0.73264225]
[1760389778804,0.42055,4276.2,4276.1,0.49364225]
[1760389778996,0.42055,4276.2,4276.1,0.73264225]
[1760389779503,0.42055,4276.2,4276.1,0.49364225]
[1760389779797,0.42055,4276.2,4276.1,0.73264225]
[1760389780194,0.42055,4276.2,4276.1,0.49364225]
[1760389780400,0.42055,4276.2,4276.1,0.73264225]
[1760389780599,0.42055,4276.2,4276.1,0.49364225]
[1760389780803,0.42055,4276.2,4276.1,0.73264225]
[1760389781603,0.42055,4276.2,4276.1,0.49364225]
[1760389782105,0.42055,4276.2,4276.1,0.73264225]
[1760389782806,0.42055,4276.2,4276.1,0.49364225]
[1760389783006,0.42055,4276.2,4276.1,0.73264225]
[1760389784207,0.42055,4276.2,4276.1,0.00174225]
[1760389784504,0.42055,4276.2,4276.1,0.24074225]
[1760389785008,0.42055,4276.2,4276.1,0.49364225]
[1760389785208,0.42055,4276.2,4276.1,0.73264225]
[1760389785906,0.42055,4276.2,4276.1,1.38264225]
[1760389788409,0.42055,4276.2,4276.1,1.14364225]
[1760389788610,0.42055,4276.2,4276.1,1.38264225]
[1760389790208,0.42055,4276.2,4276.1,0.49364225]
[1760389790411,0.42055,4276.2,4276.1,0.00174225]
[1760389792316,0.42055,4276.2,4276.1,0.24074225]
[1760389793510,0.42055,4276.2,4276.1,1.02154225]
[1760389793911,0.42055,4276.2,4276.1,0.69824225]
[1760389799324,0.42055,4276.2,4276.1,0.45924225]
[1760389799822,0.42055,4276.2,4276.1,0.69824225]
[1760389802020,0.42055,4276.2,4276.1,1.33364225]
[1760389802223,0.42055,4276.2,4276.1,0.45924225]
[1760389802618,0.42055,4276.2,4276.1,0.69824225]
[1760389802819,0.42055,4276.2,4276.1,0.45924225]
[1760389803026,0.42055,4276.2,4276.1,0.69824225]
[1760389804327,0.964207,4276.2,4276.1,0.69824225]
[1760389804623,1.05141,4276.1,4275.5,0.1934]
[1760389804821,0.42061,4275.6,4275.5,0.1934]
[1760389805020,0.964267,4275.6,4275.5,0.4324]
[1760389805728,0.96633541,4275.6,4275.5,0.43405664]
[1760389806628,0.96633541,4275.6,4275.5,0.89155664]
[1760389806830,0.96633541,4275.6,4275.5,0.65255664]
[1760389807129,0.96633541,4275.6,4275.5,0.89155664]
[1760389807824,0.96633541,4275.6,4275.5,0.65255664]
[1760389808130,0.96633541,4275.6,4275.5,0.89055664]
[1760389808927,0.96633541,4275.6,4275.5,0.65255664]
[1760389809323,0.96633541,4275.6,4275.5,0.23965664]
[1760389809926,0.96633541,4275.6,4275.5,0.88005664]
[1760389811136,0.96633541,4275.6,4275.5,0.64205664]
[1760389811337,0.96633541,4275.6,4275.5,0.88005664]
[1760389812832,0.96633541,4275.6,4275.5,0.42255664]
[1760389813036,0.96633541,4275.6,4275.5,0.23965664]
[1760389813438,0.96633541,4275.6,4275.5,0.88005664]
[1760389814336,0.42267841,4275.6,4275.5,0.88005664]
[1760389815142,0.42267841,4275.6,4275.5,0.64205664]
[1760389815343,0.42267841,4275.6,4275.5,0.88005664]
[1760389815844,0.42267841,4275.6,4275.5,0.00165664]
[1760389816343,0.42267841,4275.6,4275.5,0.23965664]
[1760389816538,0.96562481,4275.6,4275.5,0.23965664]
[1760389818448,0.96562481,4275.6,4275.5,0.00165664]
[1760389820139,0.96562481,4275.6,4275.5,0.23965664]
[1760389822743,0.96558073,4275.6,4275.5,0.23965664]
[1760389824153,0.96558073,4275.6,4275.5,0.00165664]
[1760389824350,0.4207,4274.7,4274.6,0.4933]
[1760389824653,0.4207,4274.7,4274.6,0.7313]
[1760389824849,3.2078,4275.4,4275.3,0.8307]
[1760389825152,3.2078,4275.4,4275.3,1.3833]
[1760389825354,3.2078,4275.4,4275.3,1.38616322]
[1760389825861,3.2078,4275.4,4275.3,0.49616322]
[1760389826053,3.75065633,4275.4,4275.3,0.24086322]
[1760389826651,3.75065633,4275.4,4275.3,0.73416322]
[1760389827055,1.05161,4275.3,4274.3,1.23634339]
[1760389827254,0.42079,4273.8,4273.6,0.4933]
[1760389827450,0.54834306,4273.7,4273.6,0.3374]
[1760389827753,0.54834306,4273.7,4273.6,0.8307]
[1760389828149,0.42079,4273.8,4273.6,0.33976148]
[1760389828354,0.42079,4273.8,4273.7,0.4933]
[1760389828950,0.42079,4273.8,4273.7,0.7313]
[1760389829351,0.42079,4273.8,4273.7,0.4933]
[1760389829558,0.42079,4273.8,4273.7,0.7313]
[1760389837253,0.42079,4273.8,4273.7,0.4933]
[1760389838056,0.3635,4273.7,4273.6,0.00236148]
[1760389839455,0.7843,4273.7,4273.6,0.00236148]
[1760389840162,3.9921,4273.7,4273.6,0.00236148]
[1760389842857,3.9056,4273.7,4273.6,0.83306148]
[1760389843651,3.9921,4273.7,4273.6,0.49566148]
[1760389844559,3.6286,4273.7,4273.6,1.56847148]
[1760389844763,3.6286,4273.7,4273.6,1.14766148]
[1760389845160,3.7671,4273.7,4273.6,1.10576148]
[1760389845366,3.902,4273.7,4273.6,1.34376148]
[1760389846370,3.902,4273.7,4273.6,1.10576148]
[1760389846666,3.902,4273.7,4273.6,1.34376148]
[1760389847863,3.902,4273.7,4273.6,1.10576148]
[1760389848063,3.902,4273.7,4273.6,1.34376148]
[1760389849169,3.902,4273.7,4273.6,1.10576148]
[1760389849369,3.902,4273.7,4273.6,1.34376148]
[1760389851564,3.902,4273.7,4273.6,1.10576148]
[1760389851772,3.902,4273.7,4273.6,1.34376148]
[1760389852368,3.9846,4273.7,4273.6,0.49566148]
[1760389852670,3.9846,4273.7,4273.6,0.00236148]
[1760389855181,4.53384777,4273.7,4273.6,0.00236148]
[1760389869791,4.53384777,4273.7,4273.6,1.48e-06]
[1760389873782,0.1322,4272.9,4272.8,0.02340386]
[1760389873985,4.52575416,4272.9,4272.8,0.02340386]
[1760389874783,4.52575416,4272.9,4272.8,0.02630015]
[1760389879090,4.52575416,4272.9,4272.8,1.5e-07]
[1760389882997,7.62853293,4272.9,4272.8,1.5e-07]
[1760389883700,7.62770168,4272.9,4272.8,1.5e-07]
[1760389884507,8.45893387,4272.9,4272.8,1.5e-07]
[1760389885202,7.62770168,4272.9,4272.8,1.5e-07]
[1760389887298,7.62770168,4272.9,4271.2,0.4656]
[1760389887299,0.2168,4270.9,4270.6,0.4656]
[1760389887504,0.2168,4269.7,4269.6,0.4656]
[1760389887806,0.70575,4269.1,4269.0,0.1897]
[1760389887997,0.42127,4269.0,4268.5,0.5147]
[1760389888298,0.2168,4268.6,4268.5,0.98329565]
[1760389888698,3.4246,4268.6,4268.5,0.98329565]
[1760389891604,3.4923,4268.6,4268.5,0.65829565]
[1760389891800,3.4246,4268.6,4268.5,0.65829565]
[1760389892199,3.4923,4268.6,4268.5,0.65829565]
[1760389892598,3.4246,4268.6,4268.5,0.65829565]
[1760389893704,3.4246,4268.6,4268.5,1.30909565]
[1760389893705,0.3464,4268.6,4268.5,1.30909565]
[1760389894001,0.3464,4268.6,4268.5,1.73040565]
[1760389894708,0.3464,4268.6,4268.5,1.96840565]
[1760389895210,0.4548,4268.6,4268.5,1.96840565]
[1760389895410,0.5632,4268.6,4268.5,1.96840565]
[1760389895606,0.5632,4268.6,4268.5,1.73040565]
[1760389895908,0.5632,4268.6,4268.5,1.96840565]
[1760389896111,0.5632,4268.6,4268.5,1.54709565]
[1760389900218,0.3464,4268.6,4268.5,1.54709565]
[1760389900707,0.3464,4268.6,4268.5,1.30909565]
[1760389901012,0.3464,4268.6,4268.5,1.96840565]
[1760389902411,0.3464,4268.6,4268.5,1.73040565]
[1760389902612,0.4548,4268.6,4268.5,1.73040565]
[1760389902915,0.5632,4268.6,4268.5,1.96840565]
[1760389903103,0.5632,4268.6,4268.5,1.73040565]
[1760389903308,0.5632,4268.6,4268.5,1.96840565]
[1760389904619,0.5632,4268.6,4268.5,1.73040565]
[1760389904814,0.5632,4268.6,4268.5,1.96840565]
[1760389906916,0.4305,4268.7,4268.6,0.4213]
[1760389907116,0.00206238,4269.0,4268.9,1.51237]
[1760389907618,0.00206238,4269.0,4268.9,1.75037]
[1760389911620,0.63046238,4269.0,4268.9,1.51237]
[1760389911826,1.07916238,4269.0,4268.9,1.44467]
[1760389912120,1.07916238,4269.0,4268.9,1.20667]
[1760389912323,1.07916238,4269.0,4268.9,1.44467]
[1760389912924,0.6284,4268.8,4268.7,0.4769]
[1760389913125,1.0771,4268.8,4268.7,1.13619]
[1760389914128,1.0771,4268.8,4268.7,1.44979]
[1760389915333,1.0771,4268.8,4268.7,1.76909]
[1760389917025,0.6284,4268.8,4268.7,1.76909]
[1760389917231,0.31356238,4269.0,4268.9,1.53107]
[1760389917432,0.63046238,4269.0,4268.9,1.53107]
[1760389917726,1.07916238,4269.0,4268.9,0.89817]
[1760389917926,1.07916238,4269.0,4268.9,0.65927]
[1760389918326,1.07916238,4269.0,4268.9,0.42127]
[1760389918536,1.07916238,4269.0,4268.9,0.65927]
[1760389919036,1.07916238,4269.0,4268.9,1.13617]
[1760389919829,1.0497,4268.6,4268.5,0.00299565]
[1760389920029,2.03438068,4268.6,4268.5,0.24099565]
[1760389920340,1.61308068,4268.6,4268.5,0.24099565]
[1760389921036,0.3115,4267.9,4267.4,1.72083831]
[1760389921340,2.03452462,4267.9,4267.8,0.26143128]
[1760389921532,5.12757495,4267.9,4267.8,0.02343128]
[1760389921738,5.12757495,4267.9,4267.8,0.0225915]
[1760389922039,1.49847,4267.9,4267.8,0.02499423]
[1760389922436,1.0771,4267.9,4267.8,0.26299423]
[1760389922942,1.0771,4267.9,4267.8,1.05349423]
[1760389923150,0.6284,4267.9,4267.8,1.37279423]
[1760389924946,3.5193,4268.1,4268.0,1.2909]
[1760389925148,3.2078,4268.1,4268.0,1.2909]
[1760389925348,3.2078,4268.6,4268.5,0.1811]
[1760389925547,3.5193,4268.6,4268.5,1.95021]
[1760389926042,3.5193,4268.6,4268.5,1.71221]
[1760389926245,4.2849,4268.6,4268.5,0.7149]
[1760389926438,4.2849,4268.6,4268.5,0.4769]
[1760389926640,4.2849,4268.6,4268.5,0.7149]
[1760389926840,0.3115,4268.6,4268.5,1.5289]
[1760389927149,0.63046238,4269.0,4268.9,0.7905]
[1760389927342,0.63046238,4269.0,4268.9,1.3478]
[1760389928945,0.00206238,4269.0,4268.9,1.3478]
[1760389929146,0.31356238,4269.0,4268.9,2.18022549]
[1760389929845,0.00206238,4269.0,4268.9,2.18022549]
[1760389930241,0.00206238,4269.0,4268.9,1.94222549]
[1760389930438,0.00206238,4269.0,4268.9,4.5556]
[1760389932550,0.00206238,4269.0,4268.9,5.79953831]
[1760389932856,0.00206238,4269.0,4268.9,4.5556]
[1760389934156,3.2078,4269.6,4268.9,4.5556]
[1760389934157,3.2078,4269.6,4269.5,0.60231]
[1760389934352,3.2078,4269.6,4269.5,1.71211]
[1760389934656,3.2078,4269.6,4269.5,2.7785211]
[1760389935154,3.21021999,4269.6,4269.5,1.95011]
[1760389935355,3.21021999,4269.6,4269.5,2.77861933]
[1760389935552,3.21021999,4269.6,4269.5,2.54061933]
[1760389935854,3.21021999,4269.6,4269.5,2.77861933]
[1760389937452,4.68081999,4269.6,4269.5,0.7905]
[1760389937658,0.5912,4269.4,4269.2,0.82850933]
[1760389937852,1.47068,4268.8,4268.7,0.82850933]
[1760389938052,1.47068,4268.8,4268.7,0.238]
[1760389938257,1.47068,4268.8,4268.7,1.0123]
[1760389938560,1.47068,4268.8,4268.7,0.7125]
[1760389938858,1.01248,4268.8,4268.7,1.0123]
[1760389939057,1.47068,4268.8,4268.7,1.0123]
[1760389939259,1.47068,4268.8,4268.7,0.4745]
[1760389939460,1.47068,4268.8,4268.7,0.7125]
[1760389940455,1.47068,4268.8,4268.7,0.4745]
[1760389940654,1.47068,4268.8,4268.7,1.0123]
[1760389942657,1.47068,4268.8,4268.7,0.7125]
[1760389943659,1.1784,4268.5,4268.4,0.82850933]
[1760389943855,1.01255,4268.1,4268.0,0.82850933]
[1760389944053,1.47077,4267.9,4267.8,0.85350356]
[1760389944359,4.67857,4267.9,4267.8,0.26299423]
[1760389945958,4.67857,4267.9,4267.8,0.02499423]
[1760389946161,4.67857,4267.9,4267.8,0.26299423]
[1760389946458,4.67857,4267.9,4267.8,0.02499423]
[1760389947953,4.67857,4267.9,4267.8,0.79929423]
[1760389948154,4.67857,4267.9,4267.8,0.26299423]
[1760389949161,4.67857,4267.9,4267.8,1.03729423]
[1760389949457,4.67857,4267.9,4267.8,0.73749423]
[1760389949654,4.67857,4267.9,4267.8,0.26299423]
[1760389950660,4.67857,4267.9,4267.8,1.03729423]
[1760389951149,3.92737,4267.9,4267.8,1.76777423]
[1760389951349,3.92737,4267.9,4267.8,1.34639423]
[1760389951655,3.92737,4267.9,4267.8,1.76777423]
[1760389952054,3.2078,4267.9,4267.8,1.76777423]
[1760389952257,3.62917,4267.9,4267.8,1.34639423]
[1760389952455,4.22037,4267.9,4267.8,1.34639423]
[1760389952854,4.22037,4267.9,4267.8,1.10839423]
[1760389953054,4.22037,4267.9,4267.8,1.34639423]
[1760389953761,4.22037,4267.9,4267.8,1.10839423]
[1760389953960,4.67857,4267.9,4267.8,0.73749423]
[1760389954162,4.67857,4267.9,4267.8,0.02499423]
[1760389954356,4.67857,4267.9,4267.8,0.26299423]
[1760389954552,4.67857,4267.9,4267.8,0.79929423]
[1760389954864,4.67857,4267.9,4267.8,0.02499423]
[1760389955166,4.67857,4267.9,4267.8,0.26299423]
[1760389955865,4.67857,4267.9,4267.8,0.02499423]
[1760389956256,4.67857,4267.9,4267.8,4.23e-06]
[1760389957061,7.69878174,4267.9,4267.8,4.23e-06]
[1760389960866,4.67857,4267.9,4267.8,4.23e-06]
[1760389961062,4.67857,4267.9,4267.8,0.77430423]
[1760389961264,3.2078,4267.9,4267.8,1.50478423]
[1760389962768,0.71952,4268.4,4268.3,1.03023]
[1760389963068,0.71952,4268.4,4268.3,1.74273]
[1760389963268,0.71952,4268.4,4268.3,1.3214]
[1760389964063,1.01252,4268.4,4268.3,1.3214]
[1760389965869,0.2883,4267.9,4267.8,0.44500423]
[1760389966073,1.46187,4267.9,4267.8,0.68300423]
[1760389966266,1.01347,4267.9,4267.8,4.23e-06]
[1760389968565,1.25147,4267.9,4267.8,4.23e-06]
[1760389969766,4.27252872,4267.9,4267.8,4.23e-06]
[1760389970160,45.07252872,4267.9,4267.8,4.23e-06]
[1760389974976,44.83452872,4267.9,4267.8,4.23e-06]
[1760389975275,45.07252872,4267.9,4267.8,4.23e-06]
[1760389978669,48.28032872,4267.9,4267.8,4.23e-06]
[1760389980180,7.24232872,4267.9,4267.8,4.23e-06]
[1760389980377,4.22127,4267.9,4267.8,4.23e-06]
[1760389980573,4.67667,4267.9,4267.8,0.28260423]
[1760389980776,3.4961,4267.9,4267.8,1.45998423]
[1760389980981,3.4961,4267.9,4267.8,1.03860423]
[1760389981176,3.786,4267.9,4267.8,4.23e-06]
[1760389982576,4.2414,4267.9,4267.8,4.23e-06]
[1760389982977,3.786,4267.9,4267.8,4.23e-06]
[1760389984775,4.2414,4267.9,4267.8,4.23e-06]
[1760389985274,3.786,4267.9,4267.8,0.72790423]
[1760389986179,4.20737,4267.9,4267.8,0.72790423]
[1760389986379,4.66277,4267.9,4267.8,0.72790423]
[1760389987379,3.62917,4267.9,4267.8,1.03860423]
[1760389987582,3.92797,4267.9,4267.8,1.03860423]
[1760389988480,3.92797,4267.9,4267.8,1.45998423]
[1760389988678,3.92797,4267.9,4267.8,1.03860423]
[1760389988877,3.92797,4267.9,4267.8,1.69798423]
[1760389989480,3.2078,4267.9,4267.8,2.52649356]
[1760389989678,3.2078,4267.9,4267.8,1.69798423]
[1760389989881,3.2078,4267.9,4267.8,2.94057876]
[1760389992173,3.2078,4268.6,4268.5,1.19041]
[1760389992380,3.6291,4268.6,4268.5,1.2144]
[1760389992585,3.9279,4268.6,4268.5,1.63571]
[1760389992787,3.2078,4268.6,4268.5,1.63571]
[1760389993285,3.6291,4268.6,4268.5,1.63571]
[1760389993683,3.2078,4268.6,4268.5,1.63571]
[1760389994079,3.2078,4269.1,4269.0,0.7691]
[1760389994284,3.2078,4269.1,4269.0,1.4524]
[1760389994685,0.42124,4269.2,4269.1,1.0386]
[1760389998385,0.42128,4268.8,4268.7,0.83190346]
[1760389998690,1.4542,4268.6,4268.5,0.1758]
[1760389998890,1.4542,4268.6,4268.5,0.4138]
[1760389999187,1.4542,4268.6,4268.5,1.1521]
[1760390001085,0.4213,4268.6,4268.5,1.2066]
[1760390001297,0.4213,4268.6,4268.5,1.4446]
[1760390001692,0.42128,4268.9,4268.8,1.0308]
[1760390001892,0.42128,4268.9,4268.8,1.2688]
[1760390002587,0.71868,4268.9,4268.8,1.2688]
[1760390003086,0.42128,4268.9,4268.8,1.2688]
[1760390008891,0.71868,4268.9,4268.8,1.2688]
[1760390009095,1.02208,4268.9,4268.8,1.2688]
[1760390010602,1.02208,4268.9,4268.8,1.0308]
[1760390010901,1.02208,4268.9,4268.8,1.2688]
[1760390011092,0.71868,4268.9,4268.8,1.2688]
[1760390011797,0.42128,4268.9,4268.8,1.2688]
[1760390012098,0.42128,4268.9,4268.8,1.0308]
[1760390012295,0.42128,4268.9,4268.8,1.2688]
[1760390012800,3.62908,4268.9,4268.8,1.2688]
[1760390014400,0.42128,4268.9,4268.8,1.2688]
[1760390014601,3.62908,4268.9,4268.8,1.2688]
[1760390016107,3.92648,4268.9,4268.8,1.2688]
[1760390016403,3.62908,4268.9,4268.8,1.2688]
[1760390016606,0.42128,4268.9,4268.8,1.2688]
[1760390016898,3.62908,4268.9,4268.8,1.2688]
[1760390017206,3.92648,4268.9,4268.8,1.2688]
[1760390017502,3.62908,4268.9,4268.8,2.10070346]
[1760390018099,3.92648,4268.9,4268.8,2.10070346]
[1760390018304,0.00241999,4269.6,4269.5,0.1827]
[1760390018501,0.29981999,4269.6,4269.5,1.2135]
[1760390018698,0.29981999,4269.6,4269.5,2.28449319]
[1760390018699,3.81101999,4269.6,4269.5,2.28449319]
[1760390018896,3.81101999,4269.6,4269.5,1.4515]
[1760390019094,3.21021999,4269.6,4269.5,1.4515]
[1760390019299,3.21021999,4269.6,4269.5,2.28445495]
[1760390019501,3.21021999,4269.6,4269.5,1.4515]
[1760390021104,0.00241999,4269.6,4269.5,5.90852124]
[1760390022405,0.00241999,4269.6,4269.5,4.6593]
[1760390022606,3.62892,4270.4,4270.3,1.0308]
[1760390022800,3.62892,4270.4,4270.3,1.2688]
[1760390023601,3.63193267,4270.4,4270.3,1.2688]
[1760390024000,0.42413267,4270.4,4270.3,1.2688]
[1760390025301,0.42413267,4270.4,4269.8,0.83123173]
[1760390025302,1.44047,4269.9,4269.8,0.83123173]
[1760390025496,0.42119,4269.7,4269.5,3.2078]
[1760390025702,1.0193,4269.6,4269.5,3.2078]
[1760390025904,1.0193,4269.6,4269.5,3.7412]
[1760390026108,1.4405,4269.6,4269.5,4.0418]
[1760390026308,1.1616,4269.6,4269.5,4.0418]
[1760390027300,1.1616,4269.6,4269.5,4.4987]
[1760390027500,1.1616,4269.6,4269.5,4.6656]
[1760390028505,1.1616,4269.6,4269.5,1.4578]
[1760390030312,0.4212,4269.6,4269.5,1.4578]
[1760390031716,0.7007,4269.6,4269.5,1.4578]
[1760390033010,0.7007,4269.6,4269.5,1.2198]
[1760390033213,0.7007,4269.6,4269.5,1.4578]
[1760390037912,0.9843,4269.6,4269.5,1.4578]
[1760390038112,0.7007,4269.6,4269.5,1.4578]
[1760390038822,1.4018,4269.6,4269.5,1.2909]
[1760390039016,1.4018,4269.6,4269.5,0.2954]
[1760390039211,1.40182,4269.4,4269.3,1.39753173]
[1760390039416,1.40182,4269.4,4269.3,2.08253173]
[1760390040111,1.40182,4269.4,4269.3,1.27923173]
[1760390040314,1.40182,4269.4,4268.9,0.83123173]
[1760390040315,1.11826,4269.0,4268.9,0.83123173]
[1760390040519,1.58076,4269.0,4268.9,0.83123173]
[1760390040719,1.58076,4269.0,4268.4,3.2078]
[1760390040720,0.98438,4268.8,4268.7,0.83123173]
[1760390041019,1.40188,4268.8,4268.7,0.237]
[1760390041220,1.40188,4268.8,4268.7,0.5169]
[1760390041422,1.4019,4268.6,4268.5,0.448]
[1760390041614,1.4019,4268.6,4268.5,0.685]
[1760390041918,1.1183,4268.6,4268.5,1.1951]
[1760390042115,3.62902,4269.4,4269.3,1.0143]
[1760390042421,0.42126,4269.0,4268.9,1.0143]
[1760390042917,0.70076,4269.0,4268.9,2.26102634]
[1760390043315,0.42126,4269.0,4268.9,2.26102634]
[1760390045310,0.70076,4269.0,4268.9,2.26102634]
[1760390045616,0.70076,4269.0,4268.9,1.0143]
[1760390045617,1.40186,4269.0,4268.9,1.0143]
[1760390045816,1.58076,4269.0,4268.9,1.0143]
[1760390046120,1.58076,4269.0,4268.9,0.448]
[1760390046911,1.40186,4269.0,4268.9,1.0143]
[1760390047617,0.4213,4268.6,4268.5,1.42752634]
[1760390048024,0.4213,4268.6,4268.5,1.99382634]
[1760390048228,0.4213,4268.6,4268.5,1.1951]
[1760390050821,0.7008,4268.6,4268.5,1.0143]
[1760390051425,0.7008,4268.6,4268.5,1.1951]
[1760390052623,1.4019,4268.6,4268.5,0.7279]
[1760390052825,1.4019,4268.6,4268.5,0.448]
[1760390053026,1.4019,4268.6,4268.5,0.7279]
[1760390053723,1.4019,4268.6,4268.5,0.2799]
[1760390053926,0.2795,4268.2,4268.1,1.52662634]
[1760390054128,0.2795,4268.2,4268.1,0.5663]
[1760390054129,0.70084,4268.2,4268.1,0.5663]
[1760390054328,0.42134,4268.2,4268.1,1.81302634]
[1760390054529,0.42134,4268.2,4268.1,2.26102634]
[1760390055130,0.42134,4268.2,4268.1,1.0143]
[1760390055425,0.42134,4268.2,4268.1,2.26102634]
[1760390056131,0.42134,4268.2,4268.1,1.0143]
[1760390060429,11.061,4271.5,4268.0,1.66452634]
[1760390060430,4.04367,4268.9,4268.8,0.4119]
[1760390060728,0.71562,4268.4,4268.3,0.9868]
[1760390060940,0.71992,4268.4,4268.3,0.9868]
[1760390061131,0.42132,4268.4,4268.3,0.9868]
[1760390061541,1.13452,4268.4,4268.3,0.9868]
[1760390061736,1.42885,4268.1,4268.0,0.4119]
[1760390062041,1.42885,4268.1,4268.0,1.1594]
[1760390062240,0.42135,4268.1,4268.0,1.1594]
[1760390068047,0.71567,4267.9,4267.8,0.41190423]
[1760390068248,1.01427,4267.9,4267.8,0.69820423]
[1760390068654,1.42887,4267.9,4267.8,0.98680423]
[1760390068946,1.66587,4267.9,4267.8,0.98680423]
[1760390072060,1.37157,4267.9,4267.8,0.98680423]
[1760390072957,0.42137,4267.9,4267.8,0.98680423]
[1760390075062,0.42137,4267.9,4267.8,2.65638409]
[1760390075264,1.42887,4267.9,4267.8,0.41190423]
[1760390075763,1.42887,4267.9,4267.8,0.69820423]
[1760390076159,1.01427,4267.9,4267.8,4.23e-06]
[1760390076557,1.01427,4267.9,4267.8,0.69820423]
[1760390076758,1.01427,4267.9,4267.8,0.98680423]
[1760390076759,1.42887,4267.9,4267.8,0.98680423]
[1760390076960,0.42137,4267.9,4267.8,2.23500409]
[1760390077263,0.65837,4267.9,4267.8,0.98680423]
[1760390079769,1.25127,4267.9,4267.8,4.23e-06]
[1760390081065,1.25127,4267.9,4267.8,1.24820409]
[1760390081262,1.66587,4267.9,4267.8,1.24820409]
[1760390081463,1.66587,4267.9,4267.8,1.66010409]
[1760390081658,1.66587,4267.9,4267.8,1.24820409]
[1760390082368,1.25127,4267.9,4267.8,4.23e-06]
[1760390082960,1.66587,4267.9,4267.8,0.41190423]
[1760390084566,0.42137,4267.9,4267.8,0.98680423]
[1760390084864,0.65837,4267.9,4267.8,0.98680423]
[1760390086163,1.66827,4267.9,4267.8,0.98680423]
[1760390088865,1.66827,4267.9,4267.8,0.28630423]
[1760390089168,1.23997,4267.9,4267.8,1.96230409]
[1760390089369,1.23997,4267.9,4267.8,2.23550409]
[1760390089568,1.67437,4267.9,4267.8,2.23550409]
[1760390089870,1.67437,4267.9,4267.8,0.98730423]
[1760390090071,1.00297,4267.9,4267.8,4.23e-06]
[1760390090273,1.23997,4267.9,4267.8,4.23e-06]
[1760390091070,0.65837,4267.9,4267.8,0.98730423]
[1760390091569,1.38387,4267.9,4267.8,0.98730423]
[1760390092878,1.14687,4267.9,4267.8,0.98730423]
[1760390093071,0.71247,4267.9,4267.8,0.98730423]
[1760390093372,1.67857,4267.9,4267.8,0.98730423]
[1760390093969,0.94947,4267.9,4267.8,0.98730423]
[1760390094879,0.94947,4267.9,4267.8,0.71410423]
[1760390094880,1.67857,4267.9,4267.8,0.71410423]
[1760390095064,1.24417,4267.9,4267.8,4.23e-06]
[1760390095472,1.78216248,4267.9,4267.8,4.23e-06]
[1760390098776,1.78204595,4267.9,4267.8,4.23e-06]
[1760390101178,1.54504595,4267.9,4267.8,4.23e-06]
[1760390101680,1.78204595,4267.9,4267.8,4.23e-06]
[1760390104780,1.78727282,4267.9,4267.8,4.23e-06]
[1760390105180,4.86628915,4267.9,4267.8,4.23e-06]
[1760390106080,1.44173,4266.3,4266.2,0.7141]
[1760390106280,1.67873,4266.3,4266.2,0.7141]
[1760390106487,0.42158,4265.8,4265.7,4.45599986]
[1760390106685,0.65858,4265.8,4265.7,5.44329986]
[1760390106983,0.65858,4265.8,4264.6,1.29123]
[1760390106984,0.1707,4265.5,4264.9,0.2788]
[1760390107178,1.14716,4265.0,4264.9,0.9873]
[1760390107478,0.42165,4265.1,4265.0,1.1583]
[1760390107685,0.65865,4265.1,4265.0,1.1583]
[1760390108083,1.44185,4265.1,4265.0,0.9873]
[1760390108571,1.67885,4265.1,4264.9,0.00249728]
[1760390108774,1.4279,4265.0,4264.9,0.28129728]
[1760390109079,1.4279,4265.0,4264.9,0.71659728]
[1760390109282,1.4279,4265.0,4264.9,0.00249728]
[1760390110178,0.42177,4263.8,4263.7,3.2078]
[1760390110373,1.38427,4263.8,4263.7,0.552]
[1760390110572,0.94987,4263.8,4263.7,0.552]
[1760390110780,1.38427,4263.8,4263.7,0.9873]
[1760390110979,1.67897,4263.8,4263.7,0.9873]
[1760390111185,1.67897,4263.8,4263.7,0.71593803]
[1760390112084,0.7255,4263.8,4263.7,0.98913803]
[1760390112278,0.237,4263.8,4263.7,0.55383803]
[1760390112479,3.62951,4264.5,4264.2,0.552]
[1760390112675,3.2078,4264.5,4264.4,0.552]
[1760390112982,0.237,4264.7,4264.6,0.2788]
[1760390113191,0.2911,4264.7,4264.6,0.9873]
[1760390113388,3.2078,4265.1,4265.0,1.1583]
[1760390113682,3.2078,4265.7,4265.6,0.9873]
[1760390113988,0.0019467,4265.8,4265.7,1.40889]
[1760390114289,3.62927,4266.9,4266.6,0.552]
[1760390114483,0.65847,4266.9,4266.8,0.9873]
[1760390114785,1.14688,4267.8,4267.7,0.552]
[1760390114984,1.14688,4267.8,4267.7,0.9873]
[1760390114985,1.38388,4267.8,4267.7,0.9873]
[1760390115288,1.68076301,4267.8,4267.7,0.00205527]